fUSD/lending_fUSD_20250417
["ID","MTS","AMOUNT","RATE_DAILY","PERIOD"]
[358293883,1744900245069,-153.987848,0.00052876,120]
[358293884,1744900245079,-156.905065,0.00052876,120]
[358293885,1744900245088,-153.987848,0.00053698,120]
[358293886,1744900245097,-156.905065,0.00053972,120]
[358293888,1744900245107,-153.987848,0.0005452,120]
[358293889,1744900245116,-166.049589,0.0005452,120]
[358293890,1744900245124,-157.542402,0.0005452,120]
[358293891,1744900245134,-503.58894179,0.0005454,6]
[358293893,1744900245143,-156.905065,0.00054931,120]
[358293894,1744900245152,-153.987848,0.00055068,120]
[358293895,1744900245162,-153.987848,0.00055616,120]
[358293896,1744900245171,-156.905065,0.00055616,120]
[358293898,1744900245180,-1512.43693004,0.00057568,15]
[358293899,1744900245189,-572.07281325,0.0005909,2]
[358293900,1744900245199,-239.39056217,0.0005989,120]
[358293901,1744900245208,-1013.82485559,0.0006,2]
[358293902,1744900245217,-151.0,0.00064658,120]
[358293903,1744900245226,-1512.43693004,0.00065101,15]
[358293904,1744900245237,-250.0,0.0006845,120]
[358293905,1744900245246,-1512.43693004,0.00072635,15]
[358293906,1744900245255,-157.71455551,0.00076,120]
[358293907,1744900245264,-428.33,0.00079885,120]
[358293908,1744900245274,-200.0,0.0008,8]
[358293909,1744900245283,-1000000.0,0.0008,120]
[358293910,1744900245292,-1512.43693004,0.00080168,15]
[358293911,1744900245302,-23900.0,0.0008041,2]
[358293912,1744900245311,-622.77,0.0008041,120]
[358293913,1744900245320,-167.62,0.00080437,120]
[358293914,1744900245328,-1000000.0,0.00085,120]
[358293915,1744900245337,-1512.43693004,0.00087702,15]
[358293916,1744900245347,-500.0,0.00087802,120]
[358293917,1744900245356,-199637.82941443,0.0008925,120]
[358293918,1744900245365,-158588.57,0.0009,120]
[358293919,1744900245374,-301.53,0.0009,2]
[358293920,1744900245384,-1000000.0,0.0009,120]
[358293921,1744900245393,-572.30437446,0.00092,120]
[358293922,1744900245402,-267.98007243,0.0009429,7]
[358293923,1744900245411,-221.30138162,0.000949,30]
[358293924,1744900245420,-405.85734434,0.000949,2]
[358293925,1744900245429,-1000000.0,0.00095,120]
[358293926,1744900245439,-152120.0,0.00095,120]
[358293927,1744900245448,-55777.0,0.00095,120]
[358293928,1744900245458,-4069.2573,0.000963,120]
[358293929,1744900245468,-167.62,0.00097553,120]
[358293930,1744900245477,-1380.94300985,0.00097654,120]
[358293931,1744900245487,-947.64086268,0.00098,120]
[358293932,1744900245496,-819.49146815,0.0009863,120]
[358293933,1744900245506,-288.65993044,0.0009999,120]
[358293934,1744900245515,-150.0,0.00099999,120]
[358293935,1744900245524,-150.0,0.00099999,120]
[358293936,1744900245533,-150.0,0.00099999,120]
[358293937,1744900245542,-150.0,0.00099999,120]
[358293938,1744900245551,-150.0,0.00099999,120]
[358293939,1744900245560,-150.0,0.00099999,120]
[358293940,1744900245569,-150.0,0.00099999,120]
[358293941,1744900245579,-150.0,0.00099999,120]
[358293942,1744900245588,-150.00000004,0.00099999,120]
[358293943,1744900245597,-201.4070758,0.001,120]
[358293944,1744900245607,-1000000.0,0.001,120]
[358293945,1744900245616,-500.0,0.001,2]
[358293946,1744900245625,-1054.48370184,0.001,120]
[358293947,1744900245634,-1350.0,0.001,10]
[358293949,1744900245643,-151.0,0.001,120]
[358293950,1744900245652,-243.5144066,0.001,2]
[358293954,1744900245758,-155.70539169,0.001,120]
[358293955,1744900245768,-153.4,0.00102,120]
[358293956,1744900245778,-500.0,0.00111762,120]
[358293957,1744900245788,-167.62,0.0011467,120]
[358293958,1744900245797,-150.0,0.00119143,120]
[358293959,1744900245807,-167.62,0.00131786,120]
[358293961,1744900245817,-185.02,0.00139,120]
[358293963,1744900245828,-151.0,0.00139726,120]
[358293965,1744900245838,-151.0,0.00139726,120]
[358293966,1744900245847,-151.0,0.00139726,120]
[358293967,1744900245857,-151.0,0.00139726,120]
[358293968,1744900245867,-277.843966,0.00139726,120]
[358293969,1744900245877,-167.62,0.00148903,120]
[358293970,1744900245886,-500.0,0.0015,2]
[358293971,1744900245895,-1000.0,0.0015,7]
[358293972,1744900245904,-302.57031419,0.0015,120]
[358293973,1744900245915,-500.0,0.00153724,120]
[358293974,1744900245924,-150.0,0.00156474,120]
[358293975,1744900245934,-1661.67600718,0.00170738,80]
[358293976,1744900245943,-1515.87007283,0.0018,7]
[358293977,1744900245952,-150.0,0.00193882,120]
[358293978,1744900245962,-151.0,0.00196658,120]
[358293979,1744900245971,-2000.0,0.002,120]
[358293980,1744900245980,-181.0,0.002,120]
[358293981,1744900245989,-150.0,0.00205472,120]
[358293982,1744900245999,-502.0,0.00225014,2]
[358293983,1744900246008,-500.0,0.00242694,120]
[358293984,1744900246017,-150.1,0.00243815,120]
[358293985,1744900246027,-563.51158053,0.00248,120]
[358293986,1744900246036,-338.39847013,0.0025,10]
[358293987,1744900246045,-181.0,0.0026,10]
[358293988,1744900246054,-500.0,0.00263474,120]
[358293989,1744900246064,-9505.7231183,0.0027222,120]
[358293990,1744900246074,-500.0,0.00284127,120]
[358293991,1744900246083,-246.82,0.00284929,30]
[358293992,1744900246093,-999.99,0.00284929,40]
[358293993,1744900246102,-400.72,0.00284929,30]
[358293994,1744900246111,-150.99,0.00284929,120]
[358293995,1744900246121,-500.0,0.0028493,120]
[358293996,1744900246130,-150.0,0.0028493,120]
[358293997,1744900246140,-150.0,0.0028493,120]
[358293998,1744900246150,-150.0,0.0028493,120]
[358293999,1744900246159,-500.0,0.00285314,120]
[358294000,1744900246168,-400.0,0.00290023,14]
[358294001,1744900246178,-500.0,0.00293138,120]
[358294002,1744900246188,-607.62554516,0.00293138,120]
[358294003,1744900246197,-500.0,0.00293138,120]
[358294004,1744900246207,-150.0,0.00293138,120]
[358294005,1744900246216,-166.04038813,0.00293138,120]
[358294006,1744900246226,-50000.0,0.003,2]
[358294007,1744900246236,-3000.0,0.003,120]
[358294008,1744900246245,-5021.1499272,0.003,120]
[358294009,1744900246254,-804.14300793,0.003,120]
[358294010,1744900246264,-545.90864822,0.003,120]
[358294011,1744900246273,-999.999999,0.003,120]
[358294012,1744900246282,-500.0,0.00304097,120]
[358294013,1744900246291,-500.0,0.00305901,120]
[358294014,1744900246301,-500.0,0.00315056,120]
[358294015,1744900246310,-563.77,0.0031616,30]
[358294016,1744900246319,-2000.0,0.0031616,120]
[358294017,1744900246328,-932.63,0.0031616,120]
[358294018,1744900246337,-156.71,0.0031616,120]
[358294019,1744900246347,-150.0,0.0031616,30]
[358294020,1744900246356,-150.0,0.00316585,120]
[358294021,1744900246365,-1661.67600718,0.00321576,80]
[358294022,1744900246374,-350.0,0.00326015,120]
[358294023,1744900246383,-200.0,0.00334103,30]
[358294025,1744900246393,-2608.27,0.00334119,30]
[358294027,1744900246402,-244.54,0.00352767,2]
[358294029,1744900246411,-200.0,0.00354685,120]
[358294030,1744900246420,-1000.0,0.00354685,120]
[358294033,1744900246429,-244.54,0.00355031,2]
[358294035,1744900246439,-244.54,0.00357295,2]
[358294037,1744900246448,-244.54,0.00359559,2]
[358294039,1744900246457,-165.32,0.00359735,30]
[358294040,1744900246466,-244.54,0.00361823,2]
[358294042,1744900246475,-200.0,0.00362753,120]
[358294044,1744900246485,-244.54,0.00364086,2]
[358294046,1744900246494,-500.0,0.00366338,120]
[358294047,1744900246503,-244.54,0.0036635,2]
[358294048,1744900246513,-244.54,0.00368614,2]
[358294049,1744900246522,-244.54,0.00370878,2]
[358294050,1744900246532,-244.54,0.00373142,2]
[358294051,1744900246541,-244.54,0.00375406,2]
[358294052,1744900246551,-244.54,0.0037767,2]
[358294053,1744900246562,-244.54,0.00379934,2]
[358294054,1744900246571,-244.54,0.00382198,2]
[358294055,1744900246580,-244.54,0.00384461,2]
[358294056,1744900246589,-244.54,0.00386725,2]
[358294057,1744900246598,-244.54,0.00388989,2]
[358294058,1744900246607,-517.17969808,0.00389372,120]
[358294059,1744900246616,-244.54,0.00391253,2]
[358294060,1744900246626,-244.54,0.00393517,2]
[358294061,1744900246635,-244.54,0.00395781,2]
[358294062,1744900246644,-1000.0,0.0039902,120]
[358294063,1744900246654,-435.7175,0.003999,120]
[358294064,1744900246663,-50000.0,0.004,2]
[358294065,1744900246673,-3000.0,0.004,120]
[358294066,1744900246683,-2557.3563019,0.004,30]
[358294067,1744900246692,-500.0,0.00410959,7]
[358294068,1744900246702,-500.0,0.00411507,2]
[358294069,1744900246710,-150.0,0.00413321,120]
[358294070,1744900246718,-500.0,0.0041565,120]
[358294071,1744900246726,-442.1948,0.00427295,31]
[358294072,1744900246736,-169.2036,0.00427295,120]
[358294073,1744900246745,-150.0,0.00440446,120]
[358294074,1744900246755,-150.0,0.00442263,120]
[358294075,1744900246764,-563.77,0.00442624,30]
[358294076,1744900246773,-1000.0,0.00443356,120]
[358294077,1744900246782,-300.0,0.00446246,120]
[358294078,1744900246791,-500.0,0.00446485,120]
[358294079,1744900246801,-2000.0,0.004465,35]
[358294080,1744900246810,-544.60128189,0.0044887,120]
[358294081,1744900246820,-150.0,0.00454227,120]
[358294082,1744900246834,-6384.51374773,0.0045885,120]
[358294083,1744900246843,-1000.0,0.00465753,7]
[358294084,1744900246853,-233.45845962,0.0047,120]
[358294085,1744900246862,-1661.67600718,0.00472415,80]
[358294086,1744900246873,-156.71,0.0047424,120]
[358294087,1744900246883,-20000.0,0.00477783,120]
[358294088,1744900246893,-18818.1703,0.004799,120]
[358294089,1744900246902,-2607.3177,0.004799,120]
[358294090,1744900246912,-20000.0,0.0048,120]
[358294091,1744900246922,-1000.0,0.00487692,120]
[358294092,1744900246932,-193.70525615,0.00499999,120]
[358294093,1744900246940,-50000.0,0.005,2]
[358294094,1744900246948,-1999.999999,0.005,120]
[358294095,1744900246956,-2000.0,0.005,120]
[358294096,1744900246965,-1000.0,0.005,120]
[358294097,1744900246974,-20000.0,0.005,120]
[358294098,1744900246984,-20000.0,0.005,120]
[358294099,1744900246994,-3458.09062385,0.005,120]
[358294100,1744900247004,-3601.25892854,0.005,120]
[358294101,1744900247013,-3318.12122152,0.005,120]
[358294102,1744900247022,-151.9863552,0.005,14]
[358294103,1744900247032,-575.0,0.00500959,120]
[358294104,1744900247041,-168.058,0.00500959,120]
[358294105,1744900247051,-152.0,0.00500959,120]
[358294106,1744900247060,-945.987,0.00500959,120]
[358294107,1744900247069,-409.861,0.00500959,120]
[358294108,1744900247079,-150.0,0.00501653,120]
[358294109,1744900247089,-20000.0,0.00502155,120]
[358294110,1744900247099,-152.0,0.00503959,120]
[358294111,1744900247109,-500.0,0.00508208,120]
[358294112,1744900247119,-152.0,0.00516066,3]
[358294113,1744900247129,-1492.80226175,0.00520548,7]
[358294114,1744900247138,-20000.0,0.0052777,120]
[358294115,1744900247148,-1000.0,0.00532027,120]
[358294116,1744900247157,-165.32,0.00539603,30]
[358294117,1744900247167,-150.0,0.00543461,120]
[358294118,1744900247177,-563.72084052,0.00547945,2]
[358294119,1744900247187,-500.0,0.00547945,120]
[358294120,1744900247196,-500.0,0.00547945,120]
[358294121,1744900247205,-616.76002116,0.00547945,120]
[358294122,1744900247215,-500.0,0.00547945,120]
[358294123,1744900247227,-500.0,0.00547945,120]
[358294124,1744900247238,-500.0,0.00547945,120]
[358294125,1744900247247,-500.0,0.00547945,120]
[358294126,1744900247256,-500.0,0.00547945,120]
[358294127,1744900247265,-500.0,0.00547945,120]
[358294128,1744900247274,-500.0,0.00547945,120]
[358294129,1744900247283,-500.0,0.00547945,120]
[358294130,1744900247292,-469.45838662,0.00547945,120]
[358294131,1744900247302,-500.0,0.00547945,120]
[358294132,1744900247312,-457.9,0.00547945,120]
[358294133,1744900247322,-500.0,0.00547945,2]
[358294134,1744900247332,-500.0,0.00547945,120]
[358294135,1744900247342,-317.78,0.00547945,120]
[358294136,1744900247351,-500.0,0.00547945,120]
[358294137,1744900247361,-500.0,0.00547945,120]
[358294138,1744900247370,-500.0,0.00547945,120]
[358294139,1744900247379,-500.0,0.00547945,120]
[358294140,1744900247389,-500.0,0.00547945,120]
[358294141,1744900247399,-500.0,0.00547945,120]
[358294142,1744900247409,-444.17,0.00547945,120]
[358294143,1744900247418,-500.0,0.00547945,120]
[358294144,1744900247427,-500.0,0.00547945,120]
[358294145,1744900247436,-500.0,0.00547945,120]
[358294146,1744900247445,-500.0,0.00547945,120]
[358294147,1744900247454,-500.0,0.00547945,120]
[358294148,1744900247464,-500.0,0.00547945,120]
[358294149,1744900247474,-500.0,0.00547945,120]
[358294150,1744900247483,-500.0,0.00547945,120]
[358294151,1744900247493,-500.0,0.00547945,120]
[358294152,1744900247503,-500.0,0.00547945,120]
[358294153,1744900247513,-500.0,0.00547945,120]
[358294154,1744900247522,-500.0,0.00547945,120]
[358294155,1744900247532,-1120.62,0.00547945,7]
[358294156,1744900247542,-500.0,0.00547945,120]
[358294157,1744900247552,-500.0,0.00547945,120]
[358294158,1744900247561,-500.0,0.00547945,120]
[358294159,1744900247571,-1493.57,0.00547945,120]
[358294160,1744900247580,-500.0,0.00547945,120]
[358294161,1744900247589,-390.50641899,0.00547945,120]
[358294162,1744900247599,-500.0,0.00547945,120]
[358294163,1744900247608,-500.0,0.00547945,120]
[358294164,1744900247618,-500.0,0.00547945,120]
[358294165,1744900247627,-500.0,0.00547945,120]
[358294166,1744900247637,-500.0,0.00547945,120]
[358294167,1744900247647,-500.0,0.00547945,120]
[358294168,1744900247657,-500.0,0.00547945,120]
[358294169,1744900247665,-500.0,0.00547945,120]
[358294170,1744900247674,-500.0,0.00547945,120]
[358294171,1744900247684,-500.0,0.00547945,120]
[358294172,1744900247693,-500.0,0.00547945,120]
[358294173,1744900247702,-500.0,0.00547945,120]
[358294174,1744900247711,-500.0,0.00547945,120]
[358294175,1744900247720,-500.0,0.00547945,120]
[358294176,1744900247730,-500.0,0.00547945,120]
[358294177,1744900247739,-500.0,0.00547945,120]
[358294178,1744900247749,-500.0,0.00547945,120]
[358294179,1744900247758,-500.0,0.00547945,120]
[358294180,1744900247767,-500.0,0.00547945,120]
[358294181,1744900247775,-500.0,0.00547945,120]
[358294182,1744900247784,-516.0,0.00547945,120]
[358294183,1744900247794,-500.0,0.00547945,120]
[358294184,1744900247804,-500.0,0.00547945,120]
[358294185,1744900247813,-246.21208624,0.00547945,60]
[358294186,1744900247823,-500.0,0.00547945,120]
[358294187,1744900247835,-500.0,0.00547945,120]
[358294188,1744900247846,-500.0,0.00547945,120]
[358294189,1744900247855,-500.0,0.00547945,120]
[358294190,1744900247864,-500.0,0.00547945,120]
[358294191,1744900247875,-395.46469508,0.00547945,120]
[358294192,1744900247884,-500.0,0.00547945,120]
[358294193,1744900247894,-500.0,0.00547945,120]
[358294194,1744900247904,-500.0,0.00547945,120]
[358294195,1744900247913,-500.0,0.00547945,120]
[358294196,1744900247923,-500.0,0.00547945,120]
[358294197,1744900247934,-500.0,0.00547945,120]
[358294198,1744900247944,-500.0,0.00547945,120]
[358294199,1744900247954,-500.0,0.00547945,120]
[358294200,1744900247964,-501.47167339,0.00547945,5]
[358294201,1744900247973,-500.0,0.00547945,120]
[358294202,1744900247983,-500.0,0.00547945,120]
[358294203,1744900247993,-500.0,0.00547945,30]
[358294204,1744900248002,-500.0,0.00547945,120]
[358294205,1744900248013,-500.0,0.00547945,120]
[358294206,1744900248022,-500.0,0.00547945,120]
[358294207,1744900248031,-503.36742057,0.00547945,120]
[358294208,1744900248041,-500.0,0.00547945,120]
[358294209,1744900248051,-500.0,0.00547945,120]
[358294210,1744900248060,-558.88,0.00547945,120]
[358294211,1744900248070,-500.0,0.00547945,120]
[358294212,1744900248080,-500.0,0.00547945,120]
[358294213,1744900248091,-500.0,0.00547945,120]
[358294214,1744900248102,-500.0,0.00547945,120]
[358294215,1744900248112,-500.0,0.00547945,2]
[358294216,1744900248122,-500.0,0.00547945,120]
[358294217,1744900248132,-500.0,0.00547945,120]
[358294218,1744900248141,-577.23455589,0.00547945,120]
[358294219,1744900248151,-455.19851743,0.00547945,120]
[358294220,1744900248161,-254.26382086,0.00547945,16]
[358294221,1744900248171,-500.0,0.00547945,120]
[358294222,1744900248180,-622.49,0.00547945,120]
[358294223,1744900248190,-471.06,0.00547945,118]
[358294224,1744900248199,-500.0,0.00547945,120]
[358294225,1744900248209,-405.07702448,0.00547945,120]
[358294226,1744900248219,-500.0,0.00547945,120]
[358294227,1744900248229,-500.0,0.00547945,120]
[358294228,1744900248239,-500.0,0.00547945,2]
[358294229,1744900248343,-500.0,0.00547945,120]
[358294230,1744900248354,-500.0,0.00547945,120]
[358294231,1744900248363,-634.9,0.00547945,120]
[358294232,1744900248372,-500.0,0.00547945,120]
[358294233,1744900248382,-502.4435849,0.00547945,120]
[358294234,1744900248391,-500.0,0.00547945,2]
[358294235,1744900248400,-500.0,0.00547945,120]
[358294236,1744900248410,-500.0,0.00547945,120]
[358294237,1744900248419,-505.43402451,0.00547945,120]
[358294238,1744900248428,-498.88459857,0.00547945,2]
[358294239,1744900248438,-500.0,0.00547945,120]
[358294240,1744900248447,-500.0,0.00547945,120]
[358294241,1744900248456,-500.0,0.00547945,120]
[358294242,1744900248466,-200.0,0.00547945,60]
[358294243,1744900248475,-207.4,0.00547945,2]
[358294244,1744900248485,-303.9797497,0.00548,2]
[358294245,1744900248495,-20000.0,0.0055,120]
[358294246,1744900248504,-500.0,0.00550261,120]
[358294247,1744900248514,-547.0,0.0055087,90]
[358294248,1744900248524,-1591.77916356,0.0055335,120]
[358294249,1744900248534,-20000.0,0.00554692,120]
[358294250,1744900248543,-500.0,0.00558904,120]
[358294251,1744900248553,-500.0,0.00558904,120]
[358294252,1744900248563,-500.0,0.00558904,120]
[358294253,1744900248572,-500.0,0.00558904,120]
[358294254,1744900248582,-500.0,0.00558904,120]
[358294255,1744900248591,-537.87,0.00558904,120]
[358294256,1744900248600,-500.0,0.00558904,120]
[358294257,1744900248610,-500.0,0.00558904,120]
[358294258,1744900248619,-373.91,0.00558904,120]
[358294259,1744900248629,-523.57679509,0.00558904,120]
[358294260,1744900248638,-420.277791,0.00558904,120]
[358294261,1744900248648,-389.87,0.00558904,120]
[358294262,1744900248658,-609.9,0.00558904,120]
[358294263,1744900248668,-500.0,0.00558904,120]
[358294264,1744900248678,-500.0,0.00558904,120]
[358294265,1744900248688,-500.0,0.00558904,120]
[358294266,1744900248698,-500.0,0.00558904,120]
[358294267,1744900248708,-500.0,0.00558904,120]
[358294268,1744900248717,-1120.62,0.00558904,7]
[358294269,1744900248727,-500.0,0.00558904,120]
[358294270,1744900248737,-500.0,0.00558904,120]
[358294271,1744900248747,-500.0,0.00558904,120]
[358294272,1744900248757,-500.0,0.00558904,120]
[358294273,1744900248767,-500.0,0.00558904,120]
[358294274,1744900248778,-321.38863267,0.00558904,120]
[358294275,1744900248788,-500.0,0.00558904,120]
[358294276,1744900248797,-500.0,0.00558904,120]
[358294277,1744900248807,-500.0,0.00558904,120]
[358294278,1744900248817,-500.0,0.00558904,120]
[358294279,1744900248827,-500.0,0.00558904,120]
[358294280,1744900248839,-500.0,0.00558904,120]
[358294281,1744900248850,-347.62,0.00558904,120]
[358294282,1744900248860,-500.0,0.00558904,120]
[358294283,1744900248870,-500.0,0.00558904,120]
[358294284,1744900248881,-500.0,0.00558904,120]
[358294285,1744900248891,-500.0,0.00558904,120]
[358294286,1744900248901,-500.0,0.00558904,120]
[358294287,1744900248912,-272.09,0.00558904,120]
[358294288,1744900248922,-325.74,0.00558904,120]
[358294289,1744900248932,-500.0,0.00558904,120]
[358294290,1744900248942,-500.0,0.00558904,120]
[358294291,1744900248952,-541.46,0.00558904,120]
[358294292,1744900248961,-500.0,0.00558904,120]
[358294293,1744900248971,-504.60399056,0.00558904,120]
[358294294,1744900248980,-500.0,0.00558904,120]
[358294295,1744900248989,-500.0,0.00558904,120]
[358294296,1744900248998,-500.0,0.00558904,120]
[358294297,1744900249009,-500.0,0.00558904,120]
[358294298,1744900249017,-500.0,0.00558904,30]
[358294299,1744900249027,-500.0,0.00558904,120]
[358294300,1744900249036,-500.0,0.00558904,120]
[358294301,1744900249046,-500.0,0.00558904,120]
[358294302,1744900249055,-500.0,0.00558904,120]
[358294303,1744900249064,-500.0,0.00558904,120]
[358294304,1744900249074,-500.0,0.00558904,120]
[358294305,1744900249083,-500.0,0.00558904,2]
[358294306,1744900249093,-406.63,0.00558904,120]
[358294307,1744900249103,-349.79819192,0.00558904,120]
[358294308,1744900249113,-500.0,0.00558904,120]
[358294309,1744900249122,-500.0,0.00558904,2]
[358294310,1744900249132,-500.0,0.00558904,120]
[358294311,1744900249141,-634.9,0.00558904,120]
[358294312,1744900249152,-500.0,0.00558904,2]
[358294313,1744900249161,-500.0,0.00558904,120]
[358294314,1744900249171,-500.0,0.00558904,120]
[358294315,1744900249180,-476.65,0.00558904,120]
[358294316,1744900249189,-181.0,0.0056,10]
[358294317,1744900249199,-152.0,0.00561984,4]
[358294318,1744900249209,-1022.0,0.005653,120]
[358294319,1744900249219,-500.0,0.00569863,120]
[358294320,1744900249229,-500.0,0.00569863,120]
[358294321,1744900249239,-500.0,0.00569863,120]
[358294322,1744900249250,-500.0,0.00569863,120]
[358294323,1744900249259,-502.79032252,0.00569863,120]
[358294324,1744900249269,-210.63,0.00569863,120]
[358294325,1744900249279,-500.0,0.00569863,120]
[358294326,1744900249288,-500.0,0.00569863,120]
[358294327,1744900249298,-500.0,0.00569863,120]
[358294328,1744900249308,-500.0,0.00569863,120]
[358294329,1744900249317,-500.0,0.00569863,120]
[358294330,1744900249327,-1120.62,0.00569863,7]
[358294331,1744900249337,-500.0,0.00569863,120]
[358294332,1744900249347,-500.0,0.00569863,120]
[358294333,1744900249356,-500.0,0.00569863,120]
[358294334,1744900249366,-492.77247797,0.00569863,120]
[358294335,1744900249376,-500.0,0.00569863,120]
[358294336,1744900249386,-500.0,0.00569863,120]
[358294337,1744900249395,-500.0,0.00569863,120]
[358294338,1744900249405,-588.33,0.00569863,120]
[358294339,1744900249414,-500.0,0.00569863,120]
[358294340,1744900249424,-500.0,0.00569863,120]
[358294341,1744900249434,-413.99,0.00569863,120]
[358294342,1744900249443,-500.0,0.00569863,120]
[358294343,1744900249452,-500.0,0.00569863,120]
[358294344,1744900249463,-500.0,0.00569863,120]
[358294345,1744900249473,-329.86,0.00569863,120]
[358294346,1744900249483,-500.0,0.00569863,120]
[358294347,1744900249493,-500.0,0.00569863,30]
[358294348,1744900249503,-510.87,0.00569863,120]
[358294349,1744900249513,-500.0,0.00569863,120]
[358294350,1744900249522,-500.0,0.00569863,120]
[358294351,1744900249531,-630.47324759,0.00569863,120]
[358294352,1744900249541,-500.0,0.00569863,120]
[358294353,1744900249551,-445.28,0.00569863,120]
[358294354,1744900249560,-500.0,0.00569863,2]
[358294355,1744900249569,-576.15,0.00569863,120]
[358294356,1744900249578,-634.9,0.00569863,120]
[358294357,1744900249587,-500.0,0.00569863,2]
[358294358,1744900249597,-500.0,0.00569863,120]
[358294359,1744900249607,-500.0,0.00569863,120]
[358294360,1744900249617,-20000.0,0.0057,120]
[358294361,1744900249626,-158.0,0.00570694,120]
[358294362,1744900249636,-20000.0,0.0058,120]
[358294363,1744900249646,-500.0,0.00580821,120]
[358294364,1744900249655,-500.0,0.00580821,120]
[358294365,1744900249665,-500.0,0.00580821,120]
[358294366,1744900249675,-500.0,0.00580821,120]
[358294367,1744900249686,-500.0,0.00580821,120]
[358294368,1744900249695,-1120.62,0.00580821,7]
[358294369,1744900249704,-500.0,0.00580821,120]
[358294370,1744900249714,-500.0,0.00580821,120]
[358294371,1744900249724,-500.0,0.00580821,120]
[358294372,1744900249733,-500.0,0.00580821,120]
[358294373,1744900249743,-500.0,0.00580821,120]
[358294374,1744900249753,-500.0,0.00580821,120]
[358294375,1744900249762,-500.0,0.00580821,120]
[358294376,1744900249771,-500.0,0.00580821,120]
[358294377,1744900249781,-500.0,0.00580821,120]
[358294378,1744900249791,-500.0,0.00580821,120]
[358294379,1744900249801,-500.0,0.00580821,30]
[358294380,1744900249811,-500.0,0.00580821,120]
[358294381,1744900249820,-500.0,0.00580821,2]
[358294382,1744900249831,-634.9,0.00580821,120]
[358294383,1744900249843,-500.0,0.00580821,120]
[358294384,1744900249852,-500.0,0.00580821,120]
[358294385,1744900249861,-20000.0,0.00582987,120]
[358294386,1744900249871,-1000.0,0.005864,120]
[358294387,1744900249880,-1940.23226463,0.0059,30]
[358294388,1744900249889,-500.0,0.0059178,120]
[358294389,1744900249899,-500.0,0.0059178,120]
[358294390,1744900249908,-500.0,0.0059178,120]
[358294391,1744900249918,-607.9,0.0059178,120]
[358294392,1744900249928,-500.0,0.0059178,120]
[358294393,1744900249939,-1120.62,0.0059178,7]
[358294394,1744900249948,-500.0,0.0059178,120]
[358294395,1744900249957,-500.0,0.0059178,120]
[358294396,1744900249967,-500.0,0.0059178,120]
[358294397,1744900249977,-500.0,0.0059178,120]
[358294398,1744900249987,-500.0,0.0059178,120]
[358294399,1744900249997,-500.0,0.0059178,120]
[358294400,1744900250006,-500.0,0.0059178,120]
[358294401,1744900250015,-611.74,0.0059178,120]
[358294402,1744900250024,-500.0,0.0059178,120]
[358294403,1744900250034,-500.0,0.0059178,120]